bitfinex-derivatives/quotes_SOLF0:USTF0_20250606
["timestamp","ask_amount","ask_price","bid_price","bid_amount"]
[1749187002486,0.04632703,147.59,147.58,6.7727]
[1749187002688,0.04632703,147.59,147.57,0.04572748]
[1749187003691,0.04632703,147.59,147.58,6.7727]
[1749187007993,0.04632703,147.59,147.57,6.81872748]
[1749187008491,0.04632703,147.59,147.57,0.04572748]
[1749187008689,4.86170832,147.59,147.57,0.04572748]
[1749187008893,40.6127,147.58,147.57,0.04572748]
[1749187010392,33.84,147.58,147.57,0.04572748]
[1749187011296,33.84,147.58,147.57,6.81882748]
[1749187015394,33.84,147.58,147.57,0.04572748]
[1749187018302,33.84,147.58,147.57,6.81882748]
[1749187020900,33.84,147.58,147.57,0.04572748]
[1749187022000,11.58908129,147.56,147.5,2.268]
[1749187022200,4.81538129,147.54,147.51,6.7759]
[1749187022496,38.63538129,147.54,147.47,33.82]
[1749187022802,4.81538129,147.52,147.46,7.01218129]
[1749187022997,11.63418953,147.52,147.49,0.05160799]
[1749187024298,4.85848953,147.52,147.49,0.05160799]
[1749187025598,4.81538129,147.5,147.36,1.18020111]
[1749187025800,4.81538129,147.5,147.35,16.68286463]
[1749187025801,37.8633,147.49,147.35,2.2395]
[1749187026097,10.33670624,147.48,147.35,2.2395]
[1749187026298,4.82963975,147.43,147.35,2.2395]
[1749187026494,37.38,147.43,147.35,2.2395]
[1749187026697,0.04734908,147.4,147.38,4.87277621]
[1749187027001,4.82963975,147.45,147.38,4.87277621]
[1749187027207,37.38,147.47,147.39,2.3101]
[1749187027409,6.52017489,147.46,147.4,4.82963975]
[1749187027702,42.20963975,147.47,147.4,4.82963975]
[1749187028003,0.04982307,147.45,147.43,6.7795]
[1749187028400,0.04982307,147.45,147.44,6.7791]
[1749187031908,0.04982307,147.45,147.43,6.7794]
[1749187032102,0.04982307,147.45,147.42,0.05119988]
[1749187032901,0.04982307,147.45,147.43,6.7791]
[1749187033300,0.04982307,147.45,147.42,0.05119988]
[1749187035004,0.04982307,147.45,147.42,6.83109988]
[1749187037203,0.04982307,147.45,147.42,0.05119988]
[1749187037503,4.82963975,147.44,147.42,0.05119988]
[1749187037705,43.58972524,147.43,147.37,6.782]
[1749187037910,4.82963975,147.42,147.37,6.782]
[1749187038408,4.82963975,147.42,147.36,6.7827]
[1749187038609,0.04435113,147.4,147.38,0.04492434]
[1749187039609,0.04435113,147.4,147.38,6.82672434]
[1749187040209,0.04435113,147.4,147.39,6.7814]
[1749187041404,0.04435113,147.4,147.38,6.82662434]
[1749187041613,0.04435113,147.4,147.38,0.04492434]
[1749187041809,4.87399088,147.4,147.38,0.04492434]
[1749187042015,37.4,147.39,147.38,0.04492434]
[1749187042912,37.4,147.39,147.38,6.82682434]
[1749187043309,37.4,147.39,147.38,0.04492434]
[1749187044815,37.4,147.39,147.38,6.82682434]
[1749187045014,37.4,147.39,147.38,0.04492434]
[1749187046916,42.22963975,147.39,147.31,6.541]
[1749187047214,37.4,147.39,147.28,37.4]
[1749187047415,4.82963975,147.36,147.32,6.7844]
[1749187047814,11.61263975,147.36,147.32,6.7844]
[1749187048014,0.05120829,147.35,147.32,6.7844]
[1749187048814,0.05120829,147.35,147.33,6.7841]
[1749187050219,0.05120829,147.35,147.32,6.7845]
[1749187050419,0.05120829,147.35,147.28,4.82963975]
[1749187050620,0.04845778,147.33,147.3,4.82963975]
[1749187050816,0.04845778,147.33,147.32,6.7847]
[1749187053723,0.04845778,147.33,147.27,37.42]
[1749187054021,0.04845778,147.33,147.28,4.82963975]
[1749187054222,0.04845778,147.33,147.27,37.42]
[1749187054524,0.04845778,147.33,147.3,4.82963975]
[1749187055015,0.04845778,147.33,147.28,4.82963975]
[1749187055519,6.83285778,147.33,147.29,6.7857]
[1749187055925,6.83285778,147.33,147.28,4.82963975]
[1749187056124,6.83285778,147.33,147.29,6.7859]
[1749187056521,0.04845778,147.33,147.28,4.82963975]
[1749187056827,0.04845778,147.33,147.3,4.82963975]
[1749187057723,0.04845778,147.33,147.32,6.7847]
[1749187059622,0.04845778,147.33,147.31,6.7851]
[1749187062328,6.83275778,147.33,147.28,4.82963975]
[1749187062528,6.83275778,147.33,147.24,6.529]
[1749187062529,0.04845778,147.33,147.24,44.769]
[1749187062725,5.87423713,147.34,147.24,44.769]
[1749187062726,0.04931152,147.3,147.28,4.82963975]
[1749187063532,0.04931152,147.3,147.29,6.7858]
[1749187072042,0.04931152,147.3,147.25,4.82963975]
[1749187072241,0.04931152,147.3,147.27,4.82963975]
[1749187072440,0.04931152,147.3,147.28,6.7862]
[1749187074747,6.83511152,147.3,147.27,6.7868]
[1749187075144,6.83531152,147.3,147.24,4.82963975]
[1749187075445,0.04931152,147.3,147.24,4.82963975]
[1749187075743,6.83521152,147.3,147.26,6.7871]
[1749187076142,0.04931152,147.3,147.24,4.82963975]
[1749187076345,6.83511152,147.3,147.26,6.7871]
[1749187076537,0.04931152,147.3,147.24,4.82963975]
[1749187077343,6.83521152,147.3,147.26,6.7871]
[1749187078046,0.04931152,147.3,147.26,4.82963975]
[1749187079143,0.04931152,147.3,147.29,6.786]
[1749187082847,0.04931152,147.3,147.28,6.7865]
[1749187084054,0.04931152,147.3,147.27,11.61643975]
[1749187085249,0.04931152,147.3,147.28,6.7863]
[1749187085454,0.04931152,147.3,147.27,4.82963975]
[1749187085652,0.04931152,147.3,147.29,11.61563975]
[1749187085854,7.45578822,147.38,147.29,4.82963975]
[1749187085855,38.26,147.35,147.29,4.82963975]
[1749187086056,38.26,147.35,147.32,4.82963975]
[1749187086354,38.26,147.35,147.32,11.61403975]
[1749187086657,38.26,147.35,147.31,4.82963975]
[1749187086858,0.04506311,147.34,147.32,0.0435929]
[1749187087855,0.04506311,147.34,147.32,11.65763265]
[1749187088055,0.04506311,147.34,147.32,6.8279929]
[1749187088256,0.04506311,147.34,147.32,11.65763265]
[1749187088859,0.04506311,147.34,147.32,6.8279929]
[1749187089162,0.04506311,147.34,147.32,0.0435929]
[1749187089958,0.04506311,147.34,147.32,6.8281929]
[1749187091965,0.04506311,147.34,147.32,0.0435929]
[1749187092161,10.31817268,147.33,147.26,4.82963975]
[1749187092358,11.19596811,147.34,147.28,4.82963975]
[1749187092359,10.31817268,147.32,147.28,4.82963975]
[1749187092559,6.7844,147.33,147.29,6.786]
[1749187092758,5.79974253,147.32,147.29,6.786]
[1749187092959,46.88076525,147.35,147.28,4.82963975]
[1749187093158,0.05002417,147.33,147.28,4.82963975]
[1749187093357,0.05002417,147.33,147.3,4.82963975]
[1749187093864,0.05002417,147.33,147.31,6.7848]
[1749187095062,0.05002417,147.33,147.3,6.7854]
[1749187095256,0.05002417,147.33,147.27,4.82963975]
[1749187095460,5.83776907,147.32,147.27,4.82963975]
[1749187095656,6.7849,147.32,147.28,6.7861]
[1749187095858,0.05002417,147.33,147.25,6.6495]
[1749187095859,5.83791072,147.31,147.25,6.6495]
[1749187096063,0.04623923,147.29,147.25,11.47913975]
[1749187096368,0.04623923,147.29,147.27,4.82963975]
[1749187096562,0.04623923,147.29,147.25,6.6495]
[1749187096869,0.04623923,147.29,147.26,11.61693975]
[1749187097071,0.04623923,147.29,147.26,4.82963975]
[1749187097271,0.04623923,147.29,147.27,6.7866]
[1749187098571,0.04623923,147.29,147.28,6.7865]
[1749187098963,0.04623923,147.29,147.25,7.09743975]
[1749187099168,0.04623923,147.29,147.25,2.2678]
[1749187099461,0.04623923,147.29,147.23,2.2776]
[1749187099660,5.83195569,147.28,147.23,2.2776]
[1749187099864,5.83252131,147.27,147.23,2.2776]
[1749187100061,0.05220757,147.26,147.23,2.2776]
[1749187100261,0.05220757,147.26,147.23,7.10723975]
[1749187100458,0.05220757,147.26,147.25,6.7879]
[1749187101069,0.05220757,147.26,147.23,7.10723975]
[1749187101271,0.05220757,147.26,147.24,6.7883]
[1749187101466,0.05220757,147.26,147.23,7.10723975]
[1749187102174,0.05220757,147.26,147.24,6.788]
[1749187102563,0.05220757,147.26,147.23,7.10723975]
[1749187102769,0.05220757,147.26,147.25,6.7879]
[1749187105472,4.4173,147.33,147.25,4.82963975]
[1749187105473,37.52,147.32,147.25,4.82963975]
[1749187105677,5.81949169,147.31,147.28,4.82963975]
[1749187105973,37.52,147.32,147.28,4.82963975]
[1749187106174,5.82001774,147.31,147.28,4.82963975]
[1749187106375,50.62456525,147.35,147.29,4.82963975]
[1749187106577,0.04503928,147.33,147.31,0.04852398]
[1749187106777,5.81936815,147.32,147.31,0.04852398]
[1749187111282,12.60396815,147.32,147.31,0.04852398]
[1749187111883,5.81936815,147.32,147.31,0.04852398]
[1749187118282,6.82933928,147.33,147.31,0.04852398]
[1749187118990,5.8343018,147.32,147.31,0.04852398]
[1749187119692,12.6189018,147.32,147.31,0.04852398]
[1749187120290,17.13045721,147.32,147.31,0.04852398]
[1749187120693,17.13474219,147.32,147.31,0.04852398]
[1749187120889,17.1347472,147.32,147.31,0.04852398]
[1749187121190,17.13475951,147.32,147.31,0.04852398]
[1749187121894,55.73475951,147.32,147.31,0.04852398]
[1749187122390,55.7352388,147.32,147.31,0.04852398]
[1749187122590,55.73471307,147.32,147.31,0.04852398]
[1749187122791,51.2189018,147.32,147.31,0.04852398]
[1749187124287,44.4343018,147.32,147.31,0.04852398]
[1749187126996,38.6,147.32,147.31,0.04852398]
[1749187128498,44.41417356,147.32,147.31,0.04852398]
[1749187128896,51.19877356,147.32,147.31,0.04852398]
[1749187129193,44.41417356,147.32,147.31,0.04852398]
[1749187130195,38.6,147.32,147.31,0.04852398]
[1749187130399,44.41209391,147.32,147.31,0.04852398]
[1749187131207,55.7027362,147.32,147.31,0.04852398]
[1749187131402,55.70261023,147.32,147.31,0.04852398]
[1749187131602,48.91801023,147.32,147.31,0.04852398]
[1749187132106,44.41209391,147.32,147.31,0.04852398]
[1749187132907,48.91876377,147.32,147.31,0.04852398]
[1749187133305,48.91858034,147.32,147.31,0.04852398]
[1749187133505,48.91857553,147.32,147.31,0.04852398]
[1749187134212,48.92313435,147.32,147.31,0.04852398]
[1749187134410,55.7063285,147.32,147.31,0.04852398]
[1749187134709,55.70612915,147.32,147.31,0.04852398]
[1749187134903,55.70623361,147.32,147.31,0.04852398]
[1749187135104,51.19669391,147.32,147.28,6.7861]
[1749187135302,5.81209391,147.31,147.28,6.7861]
[1749187135606,45.3846,147.32,147.28,6.7861]
[1749187135909,12.59702185,147.31,147.28,6.7861]
[1749187136111,6.82877253,147.31,147.28,6.7861]
[1749187136614,6.82877253,147.31,147.27,11.61643975]
[1749187137114,0.04357253,147.31,147.26,6.7872]
[1749187137409,5.80110469,147.3,147.26,6.7872]
[1749187137617,0.04357253,147.31,147.26,6.7872]
[1749187137806,5.80082115,147.3,147.26,6.7872]
[1749187138006,0.04357253,147.31,147.26,6.7872]
[1749187138211,5.80075279,147.3,147.26,6.7872]
[1749187138412,0.04357253,147.31,147.26,6.7872]
[1749187138613,12.58649345,147.3,147.26,6.7872]
[1749187138808,4.82963975,147.3,147.17,16.86844108]
[1749187139018,5.80051149,147.29,147.26,6.7874]
[1749187139210,0.04801664,147.29,147.26,6.7874]
[1749187139917,6.83431664,147.29,147.26,6.7874]
[1749187140112,0.04801664,147.29,147.26,6.7874]
[1749187140317,0.04801664,147.29,147.23,4.82963975]
[1749187140819,0.04801664,147.29,147.27,6.7866]
[1749187142016,0.04801664,147.29,147.25,4.82963975]
[1749187142017,0.04801664,147.29,147.26,6.7872]
[1749187144019,6.83411664,147.29,147.26,6.7872]
[1749187144220,0.04801664,147.29,147.26,6.7872]
[1749187144518,0.04801664,147.29,147.27,6.7867]
[1749187145926,0.04801664,147.29,147.26,6.7872]
[1749187146213,6.83037333,147.29,147.2,40.8053]
[1749187146419,0.05029594,147.26,147.2,40.8053]
[1749187146718,0.05029594,147.26,147.22,4.82963975]
[1749187146913,0.05029594,147.26,147.23,6.7887]
[1749187147120,0.05029594,147.26,147.22,4.82963975]
[1749187147516,0.05029594,147.26,147.24,6.7883]
[1749187147715,0.05029594,147.26,147.22,4.82963975]
[1749187148115,38.6,147.31,147.24,4.82963975]
[1749187148318,10.30220111,147.3,147.26,4.82963975]
[1749187148622,44.5241,147.34,147.3,6.7856]
[1749187148821,10.30340958,147.33,147.3,6.7856]
[1749187149024,5.78658205,147.32,147.28,4.82963975]
[1749187149212,37.74,147.34,147.3,4.82963975]
[1749187149411,5.80992898,147.33,147.3,4.82963975]
[1749187149618,0.04488291,147.33,147.3,4.82963975]
[1749187150121,0.04488291,147.33,147.32,6.7843]
[1749187152823,0.04488291,147.33,147.32,11.61393975]
[1749187154622,8.291e-05,147.33,147.32,11.61393975]
[1749187158926,8.291e-05,147.33,147.31,4.4469]
[1749187159127,6.78458291,147.33,147.3,2.1958]
[1749187159328,6.78458291,147.33,147.29,4.87918327]
[1749187159622,8.291e-05,147.33,147.29,0.04954352]
[1749187159824,6.785,147.32,147.29,0.04954352]
[1749187160230,6.7852,147.31,147.29,0.04954352]
[1749187160426,4.82963975,147.31,147.29,0.04954352]
[1749187161032,6.7856,147.3,147.29,0.04954352]
[1749187161231,10.32822245,147.3,147.24,2.2194]
[1749187161432,4.82963975,147.31,147.23,4.82963975]
[1749187161433,37.72,147.29,147.23,4.82963975]
[1749187162232,0.04547556,147.27,147.25,0.04558715]
[1749187162538,6.83247556,147.27,147.25,0.04558715]
[1749187162737,0.04547556,147.27,147.25,0.04558715]
[1749187163137,6.83247556,147.27,147.25,0.04558715]
[1749187164438,0.04547556,147.27,147.25,0.04558715]
[1749187165037,6.83247556,147.27,147.25,0.04558715]
[1749187165337,0.04547556,147.27,147.25,0.04558715]
[1749187165841,6.7874,147.26,147.25,0.04558715]
[1749187166235,0.04547556,147.27,147.25,0.04558715]
[1749187166431,6.83247556,147.27,147.25,0.04558715]
[1749187168332,0.04547556,147.27,147.25,0.04558715]
[1749187171743,0.04547556,147.27,147.25,6.83348715]
[1749187172047,0.04547556,147.27,147.25,0.04558715]
[1749187175545,6.83257556,147.27,147.25,0.04558715]
[1749187175940,0.04547556,147.27,147.25,0.04558715]
[1749187176951,6.83247556,147.27,147.25,0.04558715]
[1749187177546,6.7874,147.26,147.25,0.04558715]
[1749187178848,6.83257556,147.27,147.25,0.04558715]
[1749187179147,0.04547556,147.27,147.25,0.04558715]
[1749187179343,0.04547556,147.27,147.25,6.83328715]
[1749187180847,0.04547556,147.27,147.25,0.04558715]
[1749187181849,6.83247556,147.27,147.25,0.04558715]
[1749187184843,0.04547556,147.27,147.25,0.04558715]
[1749187186853,6.7874,147.26,147.25,0.04558715]
[1749187202377,4.48037222,147.26,147.25,0.04558715]
[1749187202570,0.04547556,147.27,147.25,0.04558715]
[1749187203067,11.26749404,147.26,147.25,0.04558715]
[1749187203278,11.26774217,147.26,147.25,0.04558715]
[1749187204379,5.71745733,147.26,147.25,0.04558715]
[1749187205082,44.13257556,147.27,147.25,0.04558715]
[1749187205383,5.71878152,147.26,147.25,0.04558715]
[1749187207379,5.71878152,147.26,147.25,6.83348715]
[1749187208686,5.71878152,147.26,147.25,0.04558715]
[1749187209086,10.19712795,147.26,147.25,0.04558715]
[1749187209289,10.19767684,147.26,147.25,0.04558715]
[1749187209883,16.98357078,147.26,147.25,0.04558715]
[1749187210088,12.50618152,147.26,147.25,0.04558715]
[1749187210280,16.98330471,147.26,147.25,0.04558715]
[1749187211380,12.50618152,147.26,147.25,0.04558715]
[1749187211684,6.7885,147.24,147.2,11.35853975]
[1749187211888,4.82963975,147.26,147.22,6.7892]
[1749187212088,10.19245744,147.25,147.22,6.7892]
[1749187212288,6.7883,147.25,147.2,11.35853975]
[1749187212488,37.3,147.27,147.22,6.7892]
[1749187212681,0.04530225,147.24,147.2,11.35853975]
[1749187213090,0.04530225,147.24,147.23,6.7888]
[1749187216486,2.25e-06,147.24,147.23,6.7888]
[1749187227491,2.25e-06,147.24,147.23,11.61843975]
[1749187233191,2.25e-06,147.24,147.23,9.88568587]
[1749187233498,2.25e-06,147.24,147.23,6.7888]
[1749187233999,2.25e-06,147.24,147.23,9.88568587]
[1749187243309,2.25e-06,147.24,147.23,6.7888]
[1749187243610,2.25e-06,147.24,147.23,9.88568587]
[1749187245007,2.25e-06,147.24,147.23,6.7888]
[1749187245211,2.25e-06,147.24,147.23,9.88568587]
[1749187248217,2.25e-06,147.24,147.23,6.7888]
[1749187248414,2.25e-06,147.24,147.22,0.04639421]
[1749187248415,2.25e-06,147.24,147.22,9.93218008]
[1749187249415,2.25e-06,147.24,147.22,6.83529421]
[1749187250414,2.25e-06,147.24,147.22,0.04639421]
[1749187251218,9.88528812,147.24,147.22,0.04639421]
[1749187253728,3.09688812,147.24,147.22,0.04639421]
[1749187253926,3.09688812,147.24,147.15,6.5231]
[1749187253927,8.80771186,147.23,147.15,4.3889]
[1749187254225,3.09688587,147.21,147.18,3.09688587]
[1749187254414,9.88648587,147.22,147.19,3.09688587]
[1749187254923,9.93605814,147.22,147.18,3.09688587]
[1749187255121,9.93605814,147.22,147.19,3.09688587]
[1749187255322,3.14645814,147.22,147.19,9.88738587]
[1749187255721,3.14645814,147.22,147.19,6.7905]
[1749187256815,3.14645814,147.22,147.18,9.88788587]
[1749187256816,9.93585814,147.22,147.18,9.88788587]
[1749187257028,45.85585814,147.22,147.18,9.88788587]
[1749187257220,3.09688587,147.2,147.18,6.791]
[1749187257415,3.09688587,147.2,147.14,35.92]
[1749187257617,0.0430265,147.18,147.16,3.09688587]
[1749187257920,0.0430265,147.18,147.14,35.92]
[1749187258123,0.0430265,147.18,147.16,9.88858587]
[1749187258525,0.0430265,147.18,147.14,35.92]
[1749187258724,0.0430265,147.18,147.17,9.88848587]
[1749187259725,0.0430265,147.18,147.17,6.7916]
[1749187260729,0.0430265,147.18,147.16,3.09688587]
[1749187261028,0.0430265,147.18,147.17,6.7916]
[1749187261628,0.0430265,147.18,147.16,6.7919]
[1749187261825,0.0430265,147.18,147.16,3.09688587]
[1749187262127,0.0430265,147.18,147.16,9.88878587]
[1749187262733,0.0430265,147.18,147.17,6.7916]
[1749187263432,0.0430265,147.18,147.16,9.88878587]
[1749187264330,0.0430265,147.18,147.16,6.7919]
[1749187264533,3.09688587,147.17,147.13,3.09688587]
[1749187265029,3.09688587,147.16,147.13,6.7932]
[1749187265234,6.7917,147.17,147.13,6.7932]
[1749187265534,3.09688587,147.16,147.13,9.89008587]
[1749187265929,3.09688587,147.16,147.14,6.7928]
[1749187266229,9.88858587,147.17,147.14,6.7928]
[1749187266424,47.3069265,147.18,147.14,6.7928]
[1749187266630,3.09688587,147.17,147.14,6.7928]
[1749187266835,3.09688587,147.17,147.15,6.7925]
[1749187268735,35.9630265,147.18,147.16,9.88888587]
[1749187268935,35.96946685,147.18,147.16,9.88888587]
[1749187269633,35.96946685,147.18,147.16,6.792]
[1749187271434,35.96946685,147.18,147.15,9.88928587]
[1749187271636,39.06635272,147.18,147.11,35.92]
[1749187271840,6.7916,147.17,147.14,3.09688587]
[1749187272432,3.09688587,147.16,147.13,9.89018587]
[1749187272632,9.93665014,147.16,147.13,6.7933]
[1749187272840,9.93665014,147.16,147.13,9.89018587]
[1749187273136,3.14455014,147.16,147.13,9.89018587]
[1749187273837,3.14455014,147.16,147.14,6.7929]
[1749187274040,0.04766427,147.16,147.14,9.88978587]
[1749187274241,0.04766427,147.16,147.14,3.09688587]
[1749187274545,0.04766427,147.16,147.15,9.88938587]
[1749187275131,0.04766427,147.16,147.15,11.63669827]
[1749187275842,0.04766427,147.16,147.15,6.7925]
[1749187276140,0.04766427,147.16,147.15,11.63669827]
[1749187278042,0.04766427,147.16,147.15,6.7925]
[1749187280939,6.427e-05,147.16,147.15,6.7925]
[1749187282247,6.427e-05,147.16,147.15,11.63669827]
[1749187287249,6.427e-05,147.16,147.15,6.7925]
[1749187288145,6.427e-05,147.16,147.14,11.68142738]
[1749187288549,6.427e-05,147.16,147.14,0.04442911]
[1749187288755,6.7925,147.15,147.14,0.04442911]
[1749187289553,6.427e-05,147.16,147.14,0.04442911]
[1749187289757,6.427e-05,147.16,147.15,6.7925]
[1749187290753,6.427e-05,147.16,147.14,6.83722911]
[1749187291057,6.427e-05,147.16,147.14,0.04442911]
[1749187293363,6.79216427,147.16,147.14,0.04442911]
[1749187294356,4.84419827,147.15,147.1,6.7945]
[1749187294562,10.50876592,147.15,147.1,6.7945]
[1749187295060,6.7932,147.14,147.1,6.7945]
[1749187296054,4.84419827,147.15,147.12,6.7938]
[1749187296055,6.7926,147.15,147.12,6.7938]
[1749187296257,5.70859686,147.15,147.1,4.84419827]
[1749187296557,0.04460355,147.14,147.1,4.84419827]
[1749187296761,0.04460355,147.14,147.12,6.7936]
[1749187299065,0.04460355,147.14,147.11,6.7941]
[1749187299455,6.83770355,147.14,147.11,6.7941]
[1749187299960,12.50540278,147.14,147.1,6.7945]
[1749187300159,12.50532847,147.14,147.1,6.7945]
[1749187300368,6.7934,147.13,147.1,6.7945]
[1749187301259,6.83770355,147.14,147.1,6.7945]
[1749187301464,6.83770355,147.14,147.11,6.7942]
[1749187301764,0.04460355,147.14,147.11,6.7942]
[1749187302768,11.68180182,147.14,147.11,6.7942]
[1749187303064,11.68180182,147.14,147.1,6.7946]
[1749187303269,17.34862986,147.14,147.1,6.7946]
[1749187303565,41.9335,147.13,147.09,6.795]
[1749187304753,41.9335,147.13,147.06,40.36419827]
[1749187304754,6.7944,147.11,147.05,4.84419827]
[1749187304957,0.05147928,147.09,147.05,4.84419827]
[1749187305156,0.05147928,147.09,147.07,6.7959]
[1749187307458,0.05147928,147.09,147.08,6.7957]
[1749187309859,35.14,147.14,147.12,6.7937]
[1749187310865,35.18288226,147.14,147.12,6.83784208]
[1749187311460,46.81998053,147.14,147.12,0.04414208]
[1749187312768,35.18288226,147.14,147.12,0.04414208]
[1749187313262,35.18288226,147.14,147.12,4.88834035]
[1749187313465,0.04288226,147.14,147.12,4.88834035]
[1749187313667,0.04288226,147.14,147.13,6.7934]
[1749187315368,0.04288226,147.14,147.13,11.63759827]
[1749187317867,0.04288226,147.14,147.13,6.7934]
[1749187323473,0.04288226,147.14,147.13,11.63759827]
[1749187324074,0.04288226,147.14,147.13,6.7934]
[1749187324375,0.04288226,147.14,147.13,11.63759827]
[1749187325075,0.04288226,147.14,147.13,6.7934]
[1749187325671,0.04288226,147.14,147.12,11.68214035]
[1749187326475,0.04288226,147.14,147.12,0.04414208]
[1749187327175,35.12,147.13,147.08,4.84419827]
[1749187328776,41.9135,147.13,147.09,6.7951]
[1749187329579,41.9135,147.13,147.1,6.7947]
[1749187329974,35.12,147.13,147.08,4.84419827]
[1749187330175,35.12,147.13,147.11,6.7943]
[1749187330377,35.12,147.13,147.08,4.84419827]
[1749187330575,35.12,147.13,147.04,156.98310258]
[1749187330776,0.04692366,147.1,147.08,4.84419827]
[1749187331074,0.04692366,147.1,147.09,6.7949]
[1749187338487,0.04692366,147.1,147.08,6.7955]
[1749187340086,0.04692366,147.1,147.09,6.7953]
[1749187343089,2.366e-05,147.1,147.09,11.63949827]
[1749187343391,2.366e-05,147.1,147.09,6.7953]
[1749187348400,2.366e-05,147.1,147.08,11.69155839]
[1749187349196,2.366e-05,147.1,147.09,6.7953]
[1749187369214,2.366e-05,147.1,147.09,9.89865511]
[1749187370009,2.366e-05,147.1,147.09,6.7953]
[1749187370210,2.366e-05,147.1,147.09,9.89865511]
[1749187374310,2.366e-05,147.1,147.09,6.7953]
[1749187374610,2.366e-05,147.1,147.09,9.89865511]
[1749187379514,2.366e-05,147.1,147.09,6.7953]
[1749187379716,2.366e-05,147.1,147.09,9.89865511]
[1749187380215,2.366e-05,147.1,147.09,6.7953]
[1749187380416,2.366e-05,147.1,147.09,9.89865511]
[1749187384216,2.366e-05,147.1,147.09,6.7953]
[1749187384418,2.366e-05,147.1,147.09,9.89865511]
[1749187390323,2.366e-05,147.1,147.09,6.7953]
[1749187390524,2.366e-05,147.1,147.09,9.89865511]
[1749187393422,5.69943182,147.1,147.08,6.84726012]
[1749187393625,3.10337877,147.1,147.08,0.05176012]
[1749187393826,9.89847877,147.1,147.08,0.05176012]
[1749187394222,5.69797498,147.09,147.08,0.05176012]
[1749187394627,8.80133009,147.09,147.08,0.05176012]
[1749187397127,3.10335511,147.09,147.08,0.05176012]
[1749187397328,8.80460132,147.09,147.08,0.05176012]
[1749187397631,50.61990132,147.09,147.08,0.05176012]
[1749187398429,43.82460132,147.09,147.03,3.10335511]
[1749187398722,8.80460132,147.08,147.04,3.10335511]
[1749187398929,5.70124621,147.07,147.04,3.10335511]
[1749187399230,3.10335511,147.08,147.04,3.10335511]
[1749187399527,5.71991107,147.07,147.05,6.7968]
[1749187399724,0.04707985,147.07,147.05,3.10335511]
[1749187399930,0.04707985,147.07,147.06,3.10335511]
[1749187400126,0.04707985,147.07,147.01,39.4086]
[1749187400332,0.04707985,147.07,147.06,9.89995511]
[1749187405524,0.04707985,147.07,147.06,6.7966]
[1749187405724,0.04707985,147.07,147.06,9.89995511]
[1749187406934,0.04707985,147.07,147.06,3.10335511]
[1749187408441,0.04707985,147.07,147.05,3.10335511]
[1749187409336,6.84327985,147.07,147.04,9.90075511]
[1749187411337,0.04707985,147.07,147.04,9.90075511]
[1749187411539,0.04707985,147.07,147.05,6.797]
[1749187411837,0.04707985,147.07,147.05,3.10335511]
[1749187412038,0.04707985,147.07,147.01,39.4086]
[1749187412039,0.04707985,147.07,147.06,9.89995511]
[1749187416647,0.04707985,147.07,147.06,6.7966]
[1749187416846,0.04707985,147.07,147.06,9.89995511]
[1749187419846,0.04707985,147.07,147.06,6.7966]
[1749187420046,0.04707985,147.07,147.06,9.89995511]
[1749187421544,0.04707985,147.07,147.01,39.4086]
[1749187421741,0.04707985,147.07,147.05,3.10335511]
[1749187421947,3.15043496,147.07,147.04,3.10335511]
[1749187422147,3.15043496,147.07,147.01,39.4086]
[1749187422346,3.15043496,147.07,147.04,3.10335511]
[1749187422737,3.15043496,147.07,147.04,9.90085511]
[1749187423140,0.04707985,147.07,147.04,9.90085511]
[1749187424052,0.04707985,147.07,147.05,6.797]
[1749187424553,0.04707985,147.07,147.04,3.10335511]
[1749187425252,0.04707985,147.07,147.03,4.85252206]
[1749187425649,0.04707985,147.07,147.04,6.7975]
[1749187426353,0.04707985,147.07,147.03,4.85252206]
[1749187426750,0.04707985,147.07,147.04,6.7972]
[1749187430048,0.04707985,147.07,147.05,6.7971]
[1749187430850,0.04707985,147.07,147.04,6.7974]
[1749187431846,6.84327985,147.07,147.04,6.7974]
[1749187432050,0.04707985,147.07,147.04,6.7974]
[1749187433748,6.84337985,147.07,147.04,6.7974]
[1749187434658,0.04707985,147.07,147.02,6.7983]
[1749187434953,0.04707985,147.07,147.01,2.2021]
[1749187434954,5.67419083,147.06,147.01,2.2021]
[1749187435154,0.04707985,147.07,147.02,4.85252206]
[1749187435350,0.04707985,147.07,147.04,6.7971]
[1749187436253,5.67418725,147.06,147.04,6.7971]
[1749187436452,0.04707985,147.07,147.04,6.7971]
[1749187436656,5.67523455,147.06,147.04,6.7971]
[1749187436856,0.04707985,147.07,147.04,6.7971]
[1749187437152,0.04707985,147.07,147.05,6.7971]
[1749187437559,0.04707985,147.07,147.04,6.7974]
[1749187438151,6.84327985,147.07,147.04,6.7975]
[1749187438357,0.04707985,147.07,147.02,4.85252206]
[1749187438552,5.67769272,147.06,147.02,4.85252206]